[Event "22nd ETCC Women 2019"]
[Site "Batumi"]
[Date "2019.10.27"]
[Round "4.9"]
[White "Mkrtchian, Lilit"]
[Black "Vega Gutierrez, Sabrina"]
[Result "1/2-1/2"]
[ECO "D47"]
[WhiteElo "2402"]
[BlackElo "2395"]
[Annotator "NA"]
[PlyCount "175"]
[EventDate "2019.10.24"]
[EventType "team-tourn"]
[EventCountry "GEO"]
[SourceTitle "playchess.com"]
[Source "ChessBase"]
[SourceQuality "1"]
[WhiteTeam "Armenia"]
[BlackTeam "Spain"]
[WhiteTeamCountry "ARM"]
[BlackTeamCountry "ESP"]
[TimeControl "40/5400+30:1800+30"]

1. d4 {[%emt 0:00:00]} d5 {[%emt 0:00:00]} 2. c4 {[%emt 0:00:00]} e6 {[%emt 0:00:00]} 3. Nc3 {[%emt 0:00:16]} c6 {[%emt 0:00:02]} 4. e3 {[%emt 0:00:42]} Nf6 {[%emt 0:00:18]} 5. Nf3 {[%emt 0:00:18]} Nbd7 {[%emt 0:00:18]} 6. Bd3 {[%emt 0:00:25]} dxc4 {[%emt 0:02:07]} 7. Bxc4 {[%emt 0:00:04]} b5 {[%emt 0:00:09]} 8. Bd3 {[%emt 0:00:10]} Bb7 {[%emt 0:01:43]} 9. Qc2 {[%emt 0:04:21]} a6 {[%emt 0:04:48]} 10. a4 {[%emt 0:02:43]} b4 {[%emt 0:07:17]} 11. Ne4 {[%emt 0:00:20]} c5 {[%emt 0:01:24]} 12. Nxf6+ {[%emt 0:05:43]} Nxf6 {[%emt 0:11:05]} 13. dxc5 {[%emt 0:00:28]} Rc8 {[%emt 0:01:11]} 14. Qe2 {[%emt 0:01:17]} Qa5 {[%emt 0:07:53]} 15. O-O {[%emt 0:10:03]} Bxc5 {[%emt 0:04:39]} 16. e4 {[%emt 0:02:35]} Be7 {[%emt 0:00:30]} 17. Bg5 {[%emt 0:19:59]} h6 {[%emt 0:10:00]} 18. Bh4 {[%emt 0:01:38]} Nd7 {[%emt 0:09:19]} 19. Bxe7 {[%emt 0:09:42]} Kxe7 {[%emt 0:00:07]} 20. Nd2 {[%emt 0:00:28]} Nc5 {[%emt 0:01:19]} 21. Bc2 {[%emt 0:06:05]} Rhd8 {[%emt 0:02:10]} 22. Rfd1 {[%emt 0:00:27]} Kf8 {[%emt 0:03:23]} 23. Qe3 {[%emt 0:05:42]} Qc7 {[%emt 0:05:13]} 24. a5 {[%emt 0:01:28]} Qe7 {[%emt 0:10:01]} 25. f3 {[%emt 0:04:52]} e5 {[%emt 0:02:28]} 26. Nb3 {[%emt 0:04:20]} Ne6 {[%emt 0:02:30]} 27. Rxd8+ {[%emt 0:01:55]} Qxd8 {[%emt 0:04:46]} 28. Rd1 {[%emt 0:00:21]} Qg5 {[%emt 0:00:10]} 29. Qxg5 {[%emt 0:03:21]} hxg5 {[%emt 0:00:02]} 30. Bd3 {[%emt 0:02:12]} Ke7 {[%emt 0:05:42]} 31. Kf2 {[%emt 0:01:08]} Nf4 {[%emt 0:04:13]} 32. Bf1 {[%emt 0:01:12]} g4 {[%emt 0:00:36]} 33. fxg4 {[%emt 0:04:48]} Bxe4 {[%emt 0:00:07]} 34. g3 {[%emt 0:01:20]} Ne6 {[%emt 0:00:27]} 35. Ke3 {[%emt 0:06:34]} Bb7 {[%emt 0:00:27]} 36. Rc1 {[%emt 0:00:11]} Rxc1 {[%emt 0:01:03]} 37. Nxc1 {[%emt 0:00:03]} Nc5 {[%emt 0:00:32]} 38. Bc4 {[%emt 0:00:55]} f6 {[%emt 0:00:25]} 39. Na2 {[%emt 0:00:27]} b3 {[%emt 0:00:30]} 40. Nc1 {[%emt 0:00:00]} Bc8 {[%emt 0:00:00]} 41. Nxb3 {[%emt 0:06:36]} Na4 {[%emt 0:06:47]} 42. Be2 {[%emt 0:01:11]} Kd6 {[%emt 0:00:50]} 43. Kd2 {[%emt 0:00:27]} Kd5 {[%emt 0:12:05]} 44. Kc2 {[%emt 0:03:33]} Ke4 {[%emt 0:00:53]} 45. Nc1 {[%emt 0:01:04]} Nc5 {[%emt 0:08:02]} 46. Kd2 {[%emt 0:09:31]} Kd4 {[%emt 0:01:22]} 47. Ke1 {[%emt 0:07:49]} Na4 {[%emt 0:01:46]} 48. b3 {[%emt 0:00:48]} Nc3 {[%emt 0:00:24]} 49. Bc4 {[%emt 0:00:50]} e4 {[%emt 0:01:05]} 50. h3 {[%emt 0:02:46]} Kc5 {[%emt 0:02:16]} 51. Ne2 {[%emt 0:00:45]} Nb1 {[%emt 0:00:32]} 52. Nf4 {[%emt 0:00:41]} Na3 {[%emt 0:00:17]} 53. Be2 {[%emt 0:01:11]} Nc2+ {[%emt 0:00:44]} 54. Kd2 {[%emt 0:00:07]} Nd4 {[%emt 0:00:02]} 55. Kc3 {[%emt 0:00:43]} Nxe2+ {[%emt 0:01:00]} 56. Nxe2 {[%emt 0:00:04]} Bd7 {[%emt 0:00:28]} 57. b4+ {[%emt 0:00:46]} Kd5 {[%emt 0:00:13]} 58. Nf4+ {[%emt 0:01:03]} Ke5 {[%emt 0:00:17]} 59. Ng2 {[%emt 0:00:20]} Bb5 {[%emt 0:01:01]} 60. Ne3 {[%emt 0:00:10]} g6 {[%emt 0:00:30]} 61. h4 {[%emt 0:00:32]} f5 {[%emt 0:00:28]} 62. gxf5 {[%emt 0:00:18]} gxf5 {[%emt 0:00:11]} 63. h5 {[%emt 0:01:03]} Kf6 {[%emt 0:00:50]} 64. Nd5+ {[%emt 0:00:35]} Kg5 {[%emt 0:00:16]} 65. Nf4 {[%emt 0:00:30]} e3 {[%emt 0:00:41]} 66. Nd5 {[%emt 0:00:25]} Kxh5 {[%emt 0:00:35]} 67. Nxe3 {[%emt 0:00:11]} Kg5 {[%emt 0:00:06]} 68. Kd4 {[%emt 0:00:25]} Be2 {[%emt 0:00:32]} 69. Kc5 {[%emt 0:00:50]} Bd3 {[%emt 0:00:34]} 70. Kd4 {[%emt 0:00:24]} Be2 {[%emt 0:00:02]} 71. Ke5 {[%emt 0:00:34]} Bd3 {[%emt 0:00:08]} 72. Nd1 {[%emt 0:00:38]} Bf1 {[%emt 0:00:37]} 73. Kd4 {[%emt 0:00:22]} Be2 {[%emt 0:01:03]} 74. Nf2 {[%emt 0:00:09]} Bb5 {[%emt 0:00:34]} 75. Ke3 {[%emt 0:00:09]} Bc6 {[%emt 0:00:51]} 76. Nd3 {[%emt 0:00:17]} Bb5 {[%emt 0:00:07]} 77. Ne5 {[%emt 0:00:07]} Be8 {[%emt 0:00:46]} 78. Kf3 {[%emt 0:01:08]} Bh5+ {[%emt 0:00:03]} 79. Ke3 {[%emt 0:00:36]} Be8 {[%emt 0:00:05]} 80. Kf2 {[%emt 0:01:17]} f4 {[%emt 0:01:20]} 81. Nd3 {[%emt 0:00:24]} fxg3+ {[%emt 0:00:08]} 82. Kxg3 {[%emt 0:00:02]} Bb5 {[%emt 0:00:40]} 83. Nf4 {[%emt 0:00:43]} Kf5 {[%emt 0:00:08]} 84. Kf3 {[%emt 0:00:01]} Ke5 {[%emt 0:00:15]} 85. Ke3 {[%emt 0:00:04]} Bf1 {[%emt 0:01:27]} 86. Nd3+ {[%emt 0:00:36]} Kd5 {[%emt 0:00:05]} 87. Nc5 {[%emt 0:00:09]} Bb5 {[%emt 0:00:32]} 88. Kd2 {[%emt 0:01:10]} 1/2-1/2

[Event "22nd ETCC Women 2019"]
[Site "Batumi"]
[Date "2019.10.27"]
[Round "4.9"]
[White "Golubenko, Valentina"]
[Black "Reizniece-Ozola, Dana"]
[Result "0-1"]
[ECO "E63"]
[WhiteElo "2274"]
[BlackElo "2297"]
[Annotator "NA"]
[PlyCount "140"]
[EventDate "2019.10.24"]
[EventType "team-tourn"]
[EventCountry "GEO"]
[SourceTitle "playchess.com"]
[Source "ChessBase"]
[SourceQuality "1"]
[WhiteTeam "Croatia"]
[BlackTeam "Latvia"]
[WhiteTeamCountry "CRO"]
[BlackTeamCountry "LAT"]
[TimeControl "40/5400+30:1800+30"]

1. Nf3 {[%emt 0:00:00]} Nf6 {[%emt 0:00:00]} 2. g3 {[%emt 0:00:00]} g6 {[%emt 0:00:00]} 3. Bg2 {[%emt 0:00:00]} Bg7 {[%emt 0:00:00]} 4. d4 {[%emt 0:00:00]} O-O {[%emt 0:00:11]} 5. c4 {[%emt 0:00:02]} d6 {[%emt 0:00:23]} 6. Nc3 {[%emt 0:00:06]} Nc6 {[%emt 0:00:33]} 7. O-O {[%emt 0:00:09]} a6 {[%emt 0:00:13]} 8. d5 {[%emt 0:00:23]} Na5 {[%emt 0:00:57]} 9. b3 {[%emt 0:00:14]} c5 {[%emt 0:00:59]} 10. dxc6 {[%emt 0:00:19]} Nxc6 {[%emt 0:00:36]} 11. Bb2 {[%emt 0:01:17]} Qa5 {[%emt 0:01:53]} 12. Na4 {[%emt 0:15:09]} Rb8 {[%emt 0:11:30]} 13. Bc3 {[%emt 0:04:47]} Qc7 {[%emt 0:14:08]} 14. Rc1 {[%emt 0:07:11]} b5 {[%emt 0:09:57]} 15. cxb5 {[%emt 0:00:14]} axb5 {[%emt 0:00:05]} 16. Nb2 {[%emt 0:14:49]} Qd7 {[%emt 0:07:09]} 17. Nd3 {[%emt 0:04:20]} b4 {[%emt 0:07:00]} 18. Ba1 {[%emt 0:06:05]} Nd5 {[%emt 0:06:21]} 19. Bxg7 {[%emt 0:05:05]} Kxg7 {[%emt 0:00:03]} 20. Qd2 {[%emt 0:02:53]} e6 {[%emt 0:09:28]} 21. Rc4 {[%emt 0:02:52]} Ba6 {[%emt 0:04:52]} 22. Rh4 {[%emt 0:02:57]} f6 {[%emt 0:00:51]} 23. e4 {[%emt 0:06:03]} Nb6 {[%emt 0:01:02]} 24. Rd1 {[%emt 0:06:58]} Bxd3 {[%emt 0:02:39]} 25. Qh6+ {[%emt 0:00:06]} Kg8 {[%emt 0:00:08]} 26. Rxd3 {[%emt 0:00:06]} Rf7 {[%emt 0:01:23]} 27. e5 {[%emt 0:04:12]} Nxe5 {[%emt 0:05:00]} 28. Nxe5 {[%emt 0:00:06]} fxe5 {[%emt 0:00:05]} 29. Rxb4 {[%emt 0:00:28]} d5 {[%emt 0:02:11]} 30. Qe3 {[%emt 0:06:31]} Qd6 {[%emt 0:00:07]} 31. Rb5 {[%emt 0:00:45]} Nd7 {[%emt 0:05:13]} 32. Rxb8+ {[%emt 0:00:23]} Nxb8 {[%emt 0:00:22]} 33. a4 {[%emt 0:02:39]} Na6 {[%emt 0:02:33]} 34. Rd1 {[%emt 0:01:55]} Nc5 {[%emt 0:01:41]} 35. h4 {[%emt 0:06:48]} d4 {[%emt 0:01:19]} 36. Qh6 {[%emt 0:01:12]} Nxb3 {[%emt 0:04:02]} 37. Rb1 {[%emt 0:00:31]} d3 {[%emt 0:00:18]} 38. Rxb3 {[%emt 0:00:36]} d2 {[%emt 0:00:21]} 39. Rb8+ {[%emt 0:00:36]} Qxb8 {[%emt 0:00:08]} 40. Qxd2 {[%emt 0:00:00]} Qb1+ {[%emt 0:00:00]} 41. Kh2 {[%emt 0:00:27]} Qb6 {[%emt 0:04:33]} 42. Kg1 {[%emt 0:00:07]} Ra7 {[%emt 0:00:58]} 43. Qc2 {[%emt 0:00:22]} Kg7 {[%emt 0:07:46]} 44. Bf1 {[%emt 0:11:25]} Qd4 {[%emt 0:07:35]} 45. Bb5 {[%emt 0:02:12]} e4 {[%emt 0:00:52]} 46. Qe2 {[%emt 0:01:05]} Rc7 {[%emt 0:01:44]} 47. Kg2 {[%emt 0:04:27]} Rc1 {[%emt 0:02:34]} 48. h5 {[%emt 0:09:47]} Qd1 {[%emt 0:02:43]} 49. Qxd1 {[%emt 0:00:37]} Rxd1 {[%emt 0:00:01]} 50. hxg6 {[%emt 0:00:18]} Kxg6 {[%emt 0:00:27]} 51. a5 {[%emt 0:05:07]} Ra1 {[%emt 0:00:28]} 52. a6 {[%emt 0:00:12]} Kf5 {[%emt 0:00:38]} 53. Bc4 {[%emt 0:00:28]} Ke5 {[%emt 0:01:35]} 54. Kh3 {[%emt 0:00:27]} Ra4 {[%emt 0:00:44]} 55. Bb5 {[%emt 0:00:29]} Ra2 {[%emt 0:01:04]} 56. Kg2 {[%emt 0:01:01]} e3 {[%emt 0:00:47]} 57. Kf3 {[%emt 0:00:13]} exf2 {[%emt 0:00:31]} 58. Be2 {[%emt 0:00:02]} Kd4 {[%emt 0:01:20]} 59. Kxf2 {[%emt 0:00:58]} e5 {[%emt 0:00:24]} 60. Kf3 {[%emt 0:00:37]} e4+ {[%emt 0:00:39]} 61. Kf2 {[%emt 0:00:01]} h6 {[%emt 0:00:40]} 62. g4 {[%emt 0:00:28]} Ra3 {[%emt 0:01:00]} 63. Bb5 {[%emt 0:00:37]} Ke5 {[%emt 0:00:36]} 64. Be2 {[%emt 0:00:44]} Kf4 {[%emt 0:00:23]} 65. Kf1 {[%emt 0:00:34]} Kg3 {[%emt 0:01:17]} 66. Ke1 {[%emt 0:00:02]} e3 {[%emt 0:00:26]} 67. Kd1 {[%emt 0:01:10]} Kf2 {[%emt 0:00:07]} 68. Bc4 {[%emt 0:00:39]} Ra4 {[%emt 0:00:33]} 69. Bb5 {[%emt 0:00:28]} Ra1+ {[%emt 0:00:25]} 70. Kc2 {[%emt 0:00:06]} e2 {[%emt 0:00:07]} 0-1

[Event "22nd ETCC Women 2019"]
[Site "Batumi"]
[Date "2019.10.27"]
[Round "4.10"]
[White "Garcia Martin, Marta"]
[Black "Ghukasyan, Siranush"]
[Result "1/2-1/2"]
[ECO "C50"]
[WhiteElo "2305"]
[BlackElo "2261"]
[Annotator "NA"]
[PlyCount "143"]
[EventDate "2019.10.24"]
[EventType "team-tourn"]
[EventCountry "GEO"]
[SourceTitle "playchess.com"]
[Source "ChessBase"]
[SourceQuality "1"]
[WhiteTeam "Spain"]
[BlackTeam "Armenia"]
[WhiteTeamCountry "ESP"]
[BlackTeamCountry "ARM"]
[TimeControl "40/5400+30:1800+30"]

1. e4 {[%emt 0:00:00]} e5 {[%emt 0:00:00]} 2. Nf3 {[%emt 0:00:00]} Nc6 {[%emt 0:00:00]} 3. Bc4 {[%emt 0:00:00]} Bc5 {[%emt 0:00:00]} 4. O-O {[%emt 0:00:07]} Nf6 {[%emt 0:00:00]} 5. d3 {[%emt 0:00:07]} d6 {[%emt 0:00:03]} 6. c3 {[%emt 0:00:19]} O-O {[%emt 0:01:15]} 7. h3 {[%emt 0:09:04]} a6 {[%emt 0:00:19]} 8. a4 {[%emt 0:00:20]} Re8 {[%emt 0:07:36]} 9. Ng5 {[%emt 0:17:36]} Rf8 {[%emt 0:02:36]} 10. Nd2 {[%emt 0:09:46]} h6 {[%emt 0:03:15]} 11. Ngf3 {[%emt 0:00:05]} Be6 {[%emt 0:07:11]} 12. Bxe6 {[%emt 0:06:21]} fxe6 {[%emt 0:00:48]} 13. b4 {[%emt 0:00:36]} Bb6 {[%emt 0:01:45]} 14. Nc4 {[%emt 0:00:51]} Ba7 {[%emt 0:01:37]} 15. Ra2 {[%emt 0:11:48]} b5 {[%emt 0:11:00]} 16. Na3 {[%emt 0:05:16]} Rb8 {[%emt 0:01:51]} 17. Re1 {[%emt 0:02:14]} Nh5 {[%emt 0:07:32]} 18. axb5 {[%emt 0:05:51]} axb5 {[%emt 0:00:12]} 19. d4 {[%emt 0:00:32]} exd4 {[%emt 0:34:25]} 20. Nxd4 {[%emt 0:00:10]} Bxd4 {[%emt 0:00:43]} 21. cxd4 {[%emt 0:00:06]} Qh4 {[%emt 0:05:00]} 22. Be3 {[%emt 0:09:14]} Nxb4 {[%emt 0:02:54]} 23. Rb2 {[%emt 0:01:25]} c5 {[%emt 0:01:50]} 24. dxc5 {[%emt 0:01:02]} dxc5 {[%emt 0:00:09]} 25. Bxc5 {[%emt 0:00:41]} Rfd8 {[%emt 0:00:28]} 26. Rd2 {[%emt 0:00:05]} Na6 {[%emt 0:01:24]} 27. Ba7 {[%emt 0:02:21]} Qg5 {[%emt 0:02:34]} 28. Be3 {[%emt 0:01:39]} Rxd2 {[%emt 0:02:00]} 29. Qxd2 {[%emt 0:00:04]} Qe7 {[%emt 0:00:34]} 30. Qa5 {[%emt 0:04:22]} Qb7 {[%emt 0:00:43]} 31. Rb1 {[%emt 0:03:53]} Nc7 {[%emt 0:01:38]} 32. Rc1 {[%emt 0:03:22]} Na6 {[%emt 0:00:24]} 33. Rb1 {[%emt 0:04:12]} Nc7 {[%emt 0:00:05]} 34. Qb4 {[%emt 0:00:56]} Ra8 {[%emt 0:02:56]} 35. f3 {[%emt 0:01:40]} Nf6 {[%emt 0:00:35]} 36. Qb3 {[%emt 0:01:14]} Qa6 {[%emt 0:00:41]} 37. Nc2 {[%emt 0:00:31]} Qa2 {[%emt 0:01:17]} 38. Nd4 {[%emt 0:00:30]} Qxb3 {[%emt 0:00:15]} 39. Rxb3 {[%emt 0:00:06]} Ra5 {[%emt 0:01:12]} 40. Bd2 {[%emt 0:00:00]} Ra1+ {[%emt 0:00:00]} 41. Kh2 {[%emt 0:09:55]} Rd1 {[%emt 0:06:36]} 42. Be3 {[%emt 0:00:30]} e5 {[%emt 0:01:48]} 43. Nxb5 {[%emt 0:00:42]} Ne6 {[%emt 0:00:07]} 44. Rc3 {[%emt 0:05:01]} Nh5 {[%emt 0:05:02]} 45. Na7 {[%emt 0:07:04]} Nhf4 {[%emt 0:05:08]} 46. Nc6 {[%emt 0:02:24]} Rd3 {[%emt 0:00:14]} 47. Rxd3 {[%emt 0:00:53]} Nxd3 {[%emt 0:00:05]} 48. Kg1 {[%emt 0:02:05]} Kf7 {[%emt 0:00:44]} 49. Kf1 {[%emt 0:00:26]} g5 {[%emt 0:03:20]} 50. g3 {[%emt 0:00:58]} Kf6 {[%emt 0:00:45]} 51. Ba7 {[%emt 0:01:12]} h5 {[%emt 0:02:16]} 52. Bb8 {[%emt 0:03:51]} h4 {[%emt 0:00:26]} 53. Ke2 {[%emt 0:00:44]} Nec5 {[%emt 0:00:48]} 54. gxh4 {[%emt 0:00:42]} gxh4 {[%emt 0:00:24]} 55. Ke3 {[%emt 0:00:04]} Ke6 {[%emt 0:00:48]} 56. Bc7 {[%emt 0:01:07]} Na6 {[%emt 0:05:29]} 57. Bd8 {[%emt 0:00:29]} Nf4 {[%emt 0:00:42]} 58. Bg5 {[%emt 0:00:51]} Nxh3 {[%emt 0:00:18]} 59. Bxh4 {[%emt 0:00:04]} Nf4 {[%emt 0:00:14]} 60. Bd8 {[%emt 0:01:40]} Ng6 {[%emt 0:01:04]} 61. Bb6 {[%emt 0:00:39]} Kd7 {[%emt 0:01:07]} 62. Na5 {[%emt 0:00:11]} Nc7 {[%emt 0:00:46]} 63. Nc4 {[%emt 0:00:34]} Ne6 {[%emt 0:00:23]} 64. Ba5 {[%emt 0:00:18]} Ng5 {[%emt 0:01:14]} 65. Bc3 {[%emt 0:00:20]} Nf7 {[%emt 0:00:53]} 66. Kf2 {[%emt 0:00:54]} Nf4 {[%emt 0:00:19]} 67. Kg3 {[%emt 0:00:35]} Ne2+ {[%emt 0:00:04]} 68. Kg4 {[%emt 0:00:06]} Nxc3 {[%emt 0:00:03]} 69. Kf5 {[%emt 0:00:16]} Nd6+ {[%emt 0:00:19]} 70. Kxe5 {[%emt 0:00:09]} Nxc4+ {[%emt 0:00:04]} 71. Kd4 {[%emt 0:00:04]} Nxe4 72. Kxe4 1/2-1/2

[Event "22nd ETCC Women 2019"]
[Site "Batumi"]
[Date "2019.10.27"]
[Round "4.10"]
[White "Rogule, Laura"]
[Black "Franciskovic, Borka"]
[Result "1-0"]
[ECO "A34"]
[WhiteElo "2269"]
[BlackElo "2262"]
[Annotator "NA"]
[PlyCount "113"]
[EventDate "2019.10.24"]
[EventType "team-tourn"]
[EventCountry "GEO"]
[SourceTitle "playchess.com"]
[Source "ChessBase"]
[SourceQuality "1"]
[WhiteTeam "Latvia"]
[BlackTeam "Croatia"]
[WhiteTeamCountry "LAT"]
[BlackTeamCountry "CRO"]
[TimeControl "40/5400+30:1800+30"]

1. c4 {[%emt 0:00:00]} c5 {[%emt 0:00:00]} 2. Nc3 {[%emt 0:00:00]} Nf6 {[%emt 0:00:00]} 3. g3 {[%emt 0:02:11]} e6 {[%emt 0:00:43]} 4. Nf3 {[%emt 0:01:13]} Nc6 {[%emt 0:01:38]} 5. Bg2 {[%emt 0:01:36]} Be7 {[%emt 0:00:57]} 6. O-O {[%emt 0:01:10]} a6 {[%emt 0:01:54]} 7. d4 {[%emt 0:05:49]} cxd4 {[%emt 0:00:17]} 8. Nxd4 {[%emt 0:00:06]} Qc7 {[%emt 0:00:23]} 9. b3 {[%emt 0:03:48]} O-O {[%emt 0:01:18]} 10. Bb2 {[%emt 0:01:23]} d6 {[%emt 0:08:42]} 11. Rc1 {[%emt 0:09:33]} Ne5 {[%emt 0:02:27]} 12. h3 {[%emt 0:14:12]} Bd7 {[%emt 0:05:36]} 13. f4 {[%emt 0:09:56]} Ng6 {[%emt 0:02:30]} 14. e4 {[%emt 0:03:00]} Rac8 {[%emt 0:09:27]} 15. Kh2 {[%emt 0:08:14]} Qb8 {[%emt 0:03:27]} 16. a4 {[%emt 0:03:02]} Rfd8 {[%emt 0:14:19]} 17. Rc2 {[%emt 0:02:38]} Bf8 {[%emt 0:07:59]} 18. Rd2 {[%emt 0:05:44]} Be7 {[%emt 0:03:43]} 19. Qe2 {[%emt 0:02:54]} Qc7 {[%emt 0:04:21]} 20. Rfd1 {[%emt 0:09:06]} Bf8 {[%emt 0:08:41]} 21. Nf3 {[%emt 0:02:58]} Bc6 {[%emt 0:03:29]} 22. Qe3 {[%emt 0:01:55]} b6 {[%emt 0:03:39]} 23. Nd4 {[%emt 0:00:58]} Ba8 {[%emt 0:04:19]} 24. Kh1 {[%emt 0:01:22]} Re8 {[%emt 0:00:42]} 25. Nc2 {[%emt 0:03:41]} Bb7 {[%emt 0:02:16]} 26. Kh2 {[%emt 0:03:03]} Rcd8 {[%emt 0:01:42]} 27. Ba3 {[%emt 0:01:46]} Ba8 {[%emt 0:04:12]} 28. Bb4 {[%emt 0:01:20]} Qb8 {[%emt 0:01:52]} 29. Qe2 {[%emt 0:00:47]} Qc7 {[%emt 0:00:50]} 30. Qe3 {[%emt 0:00:24]} Qb8 {[%emt 0:01:02]} 31. Rd3 {[%emt 0:00:11]} Bc6 {[%emt 0:01:29]} 32. Qd2 {[%emt 0:00:36]} Qa8 {[%emt 0:00:35]} 33. Qe2 {[%emt 0:00:45]} Qb8 {[%emt 0:00:35]} 34. Ba3 {[%emt 0:00:38]} h5 {[%emt 0:01:02]} 35. Nd4 {[%emt 0:00:36]} Bb7 {[%emt 0:00:19]} 36. Nf3 {[%emt 0:00:17]} Qc7 {[%emt 0:00:43]} 37. Bc1 {[%emt 0:00:19]} Nd7 {[%emt 0:00:29]} 38. Ng5 {[%emt 0:00:42]} Be7 {[%emt 0:00:42]} 39. Qxh5 {[%emt 0:00:35]} Bxg5 {[%emt 0:00:13]} 40. Qxg5 {[%emt 0:00:00]} Nc5 {[%emt 0:00:00]} 41. Ba3 {[%emt 0:18:50]} Nxd3 {[%emt 0:13:28]} 42. Rxd3 {[%emt 0:00:03]} Nf8 {[%emt 0:00:51]} 43. Qg4 {[%emt 0:04:40]} Rd7 {[%emt 0:11:50]} 44. Bb2 {[%emt 0:01:25]} f6 {[%emt 0:00:43]} 45. Ba3 {[%emt 0:00:23]} Red8 {[%emt 0:02:17]} 46. h4 {[%emt 0:00:46]} Rf7 {[%emt 0:02:20]} 47. Qd1 {[%emt 0:00:44]} Rfd7 {[%emt 0:00:36]} 48. f5 {[%emt 0:04:50]} exf5 {[%emt 0:00:47]} 49. exf5 {[%emt 0:00:12]} Bxg2 {[%emt 0:00:23]} 50. Kxg2 {[%emt 0:00:05]} Qb7+ {[%emt 0:00:41]} 51. Kh3 {[%emt 0:00:33]} Re7 {[%emt 0:01:59]} 52. Nd5 {[%emt 0:00:25]} Re5 {[%emt 0:00:29]} 53. Qg4 {[%emt 0:00:28]} Kf7 {[%emt 0:00:25]} 54. Bb2 {[%emt 0:01:26]} Re1 {[%emt 0:00:35]} 55. Bxf6 {[%emt 0:02:25]} gxf6 {[%emt 0:00:51]} 56. Qh5+ {[%emt 0:00:44]} Kg7 {[%emt 0:00:37]} 57. Rd4 {[%emt 0:00:17]} 1-0

[Event "22nd ETCC Women 2019"]
[Site "Batumi"]
[Date "2019.10.27"]
[Round "4.11"]
[White "Danielian, Elina"]
[Black "Matnadze, Ana"]
[Result "0-1"]
[ECO "A45"]
[WhiteElo "2385"]
[BlackElo "2383"]
[Annotator "NA"]
[PlyCount "76"]
[EventDate "2019.10.24"]
[EventType "team-tourn"]
[EventCountry "GEO"]
[SourceTitle "playchess.com"]
[Source "ChessBase"]
[SourceQuality "1"]
[WhiteTeam "Armenia"]
[BlackTeam "Spain"]
[WhiteTeamCountry "ARM"]
[BlackTeamCountry "ESP"]
[TimeControl "40/5400+30:1800+30"]

1. d4 {[%emt 0:00:00]} Nf6 {[%emt 0:00:00]} 2. Nc3 {[%emt 0:00:00]} d5 {[%emt 0:00:40]} 3. Bf4 {[%emt 0:00:00]} c6 {[%emt 0:01:21]} 4. e3 {[%emt 0:08:25]} Bf5 {[%emt 0:01:13]} 5. f3 {[%emt 0:01:44]} h5 {[%emt 0:07:42]} 6. Bd3 {[%emt 0:04:08]} e6 {[%emt 0:00:52]} 7. Nge2 {[%emt 0:06:38]} h4 {[%emt 0:02:17]} 8. e4 {[%emt 0:06:51]} dxe4 {[%emt 0:03:50]} 9. fxe4 {[%emt 0:00:04]} Bg4 {[%emt 0:00:43]} 10. h3 {[%emt 0:06:09]} Bxe2 {[%emt 0:03:12]} 11. Bxe2 {[%emt 0:00:27]} Bb4 {[%emt 0:01:53]} 12. Bf3 {[%emt 0:02:37]} Qa5 {[%emt 0:03:06]} 13. O-O {[%emt 0:02:57]} Nbd7 {[%emt 0:07:31]} 14. e5 {[%emt 0:05:08]} Bxc3 {[%emt 0:07:06]} 15. exf6 {[%emt 0:03:59]} g5 {[%emt 0:03:44]} 16. Bh2 {[%emt 0:08:00]} Bxb2 {[%emt 0:03:48]} 17. Rb1 {[%emt 0:00:03]} Qc3 {[%emt 0:01:28]} 18. Kh1 {[%emt 0:05:12]} Nb6 {[%emt 0:01:46]} 19. Qe2 {[%emt 0:02:28]} Rd8 {[%emt 0:30:27]} 20. Qe5 {[%emt 0:10:30]} Ba3 {[%emt 0:10:49]} 21. Qxg5 {[%emt 0:07:33]} Bd6 {[%emt 0:02:17]} 22. Bxd6 {[%emt 0:07:57]} Rxd6 {[%emt 0:00:02]} 23. a4 {[%emt 0:00:07]} Qc4 {[%emt 0:02:26]} 24. a5 {[%emt 0:01:47]} Nd5 {[%emt 0:01:47]} 25. Qe5 {[%emt 0:01:41]} Kd7 {[%emt 0:01:54]} 26. Bxd5 {[%emt 0:01:46]} cxd5 {[%emt 0:00:31]} 27. Rxb7+ {[%emt 0:00:18]} Kc6 {[%emt 0:00:01]} 28. Rfb1 {[%emt 0:00:31]} Qa6 {[%emt 0:00:22]} 29. c4 {[%emt 0:01:42]} Rc8 {[%emt 0:00:54]} 30. c5 {[%emt 0:01:37]} Rd7 {[%emt 0:00:01]} 31. R1b6+ {[%emt 0:01:44]} axb6 {[%emt 0:00:02]} 32. Rxd7 {[%emt 0:00:33]} Qf1+ {[%emt 0:00:29]} 33. Kh2 {[%emt 0:00:01]} Kb5 {[%emt 0:01:40]} 34. Rb7 {[%emt 0:03:09]} Kc4 {[%emt 0:00:34]} 35. Rxb6 {[%emt 0:00:20]} Qf2 {[%emt 0:00:23]} 36. Rb8 {[%emt 0:00:50]} Qg3+ {[%emt 0:00:17]} 37. Qxg3 {[%emt 0:01:01]} hxg3+ {[%emt 0:00:01]} 38. Kxg3 {[%emt 0:00:04]} Rxb8 {[%emt 0:00:04]} 0-1